[Event "*** Titled Tuesday Blitz"]
[Site "Chess.com"]
[Date "2020.01.07"]
[Round "4"]
[White "Simon2049"]
[Black "iLuusions"]
[Result "0-1"]
[WhiteElo "2140"]
[BlackElo "2465"]
[TimeControl "180+2"]
[EndTime "13:55:49 PST"]
[Termination "iLuusions won by checkmate"]

1. e4 {[%clk 0:03:01.9]} 1... c5 {[%clk 0:03:00.2]} 2. Nf3 {[%clk 0:03:02.1]}
2... e6 {[%clk 0:03:01.3]} 3. Nc3 {[%clk 0:03:02.3]} 3... a6 {[%clk 0:03:00.5]}
4. d4 {[%clk 0:03:02.2]} 4... cxd4 {[%clk 0:03:00.6]} 5. Nxd4 {[%clk 0:03:03.4]}
5... b5 {[%clk 0:03:01.9]} 6. Bd3 {[%clk 0:03:04.1]} 6... Ne7 {[%clk 0:03:03]}
7. O-O {[%clk 0:03:04.7]} 7... Nbc6 {[%clk 0:03:04.4]} 8. Nb3 {[%clk 0:03:03.6]}
8... Ng6 {[%clk 0:03:03.8]} 9. f4 {[%clk 0:03:04.1]} 9... d6 {[%clk 0:03:02.2]}
10. Qf3 {[%clk 0:02:57.7]} 10... Bb7 {[%clk 0:02:58.6]} 11. Qh3 {[%clk
0:02:57.1]} 11... Qd7 {[%clk 0:02:08.5]} 12. Be3 {[%clk 0:02:55.1]} 12... Be7
{[%clk 0:02:08.6]} 13. Rae1 {[%clk 0:02:53.4]} 13... O-O {[%clk 0:02:08]} 14. g4
{[%clk 0:02:34.9]} 14... Nb4 {[%clk 0:01:26]} 15. a3 {[%clk 0:02:28.2]} 15...
Nxd3 {[%clk 0:01:24.7]} 16. cxd3 {[%clk 0:02:29.5]} 16... a5 {[%clk 0:01:19.6]}
17. Kh1 {[%clk 0:02:28.8]} 17... b4 {[%clk 0:01:19.8]} 18. axb4 {[%clk
0:02:27.3]} 18... axb4 {[%clk 0:01:21.7]} 19. Ne2 {[%clk 0:02:27.2]} 19... d5
{[%clk 0:01:13.5]} 20. Ng3 {[%clk 0:02:27.4]} 20... dxe4 {[%clk 0:01:12.9]} 21.
dxe4 {[%clk 0:02:28.1]} 21... Rfc8 {[%clk 0:01:00]} 22. Nd4 {[%clk 0:02:24.4]}
22... e5 {[%clk 0:00:53.3]} 23. fxe5 {[%clk 0:02:12.5]} 23... Nxe5 {[%clk
0:00:55.2]} 24. Ndf5 {[%clk 0:02:05.5]} 24... Bf8 {[%clk 0:00:55.7]} 25. Rd1
{[%clk 0:02:05.7]} 25... Qe6 {[%clk 0:00:51.6]} 26. g5 {[%clk 0:01:49.9]} 26...
Rc2 {[%clk 0:00:43.2]} 27. Bd4 {[%clk 0:01:36]} 27... Ng6 {[%clk 0:00:23.1]} 28.
Qg4 {[%clk 0:01:31.1]} 28... Re8 {[%clk 0:00:23.5]} 29. Rde1 {[%clk 0:01:28]}
29... Qc4 {[%clk 0:00:17.3]} 30. b3 {[%clk 0:00:59.1]} 30... Qd3 {[%clk
0:00:10.8]} 31. Qf3 {[%clk 0:00:29.1]} 31... Rd2 {[%clk 0:00:08.1]} 32. Re3
{[%clk 0:00:28.1]} 32... Qc2 {[%clk 0:00:05.2]} 33. Nh6+ {[%clk 0:00:29.1]}
33... Kh8 {[%clk 0:00:06.6]} 34. Nxf7+ {[%clk 0:00:29.2]} 34... Kg8 {[%clk
0:00:07.4]} 35. Nh6+ {[%clk 0:00:30.3]} 35... Kh8 {[%clk 0:00:08.9]} 36. Nf7+
{[%clk 0:00:13.8]} 36... Kg8 {[%clk 0:00:10.2]} 37. Nh6+ {[%clk 0:00:10.7]}
37... Kh8 {[%clk 0:00:11.5]} 38. Ng4 {[%clk 0:00:12.1]} 38... Rxd4 {[%clk
0:00:09.5]} 39. Re2 {[%clk 0:00:12.7]} 39... Qd3 {[%clk 0:00:10.2]} 40. Qf7
{[%clk 0:00:12.8]} 40... Rdd8 {[%clk 0:00:11.4]} 41. Re3 {[%clk 0:00:12.4]}
41... Qd7 {[%clk 0:00:11.5]} 42. Qf3 {[%clk 0:00:12.8]} 42... Qe6 {[%clk
0:00:09.3]} 43. Nf5 {[%clk 0:00:14.1]} 43... Bc5 {[%clk 0:00:09.6]} 44. Rd3
{[%clk 0:00:14.6]} 44... Rxd3 {[%clk 0:00:07.9]} 45. Qxd3 {[%clk 0:00:15.6]}
45... Bxe4+ {[%clk 0:00:09.2]} 46. Qxe4 {[%clk 0:00:14]} 46... Qxe4+ {[%clk
0:00:11.1]} 47. Rf3 {[%clk 0:00:11.9]} 47... Qxf3# {[%clk 0:00:12.4]} 0-1

[Event "*** Titled Tuesday Blitz"]
[Site "Chess.com"]
[Date "2020.01.07"]
[Round "4"]
[White "FredyMatsuura"]
[Black "r31415"]
[Result "1-0"]
[WhiteElo "2245"]
[BlackElo "2467"]
[TimeControl "180+2"]
[EndTime "13:55:56 PST"]
[Termination "FredyMatsuura won by resignation"]

1. d4 {[%clk 0:03:01.9]} 1... d6 {[%clk 0:03:00.9]} 2. e4 {[%clk 0:03:00.8]}
2... Nf6 {[%clk 0:03:02]} 3. Nc3 {[%clk 0:03:01.8]} 3... g6 {[%clk 0:03:03.4]}
4. Nf3 {[%clk 0:03:00.7]} 4... Bg7 {[%clk 0:03:04.2]} 5. h3 {[%clk 0:02:59.8]}
5... O-O {[%clk 0:03:05.4]} 6. Be3 {[%clk 0:03:00.8]} 6... c6 {[%clk 0:03:06.7]}
7. a4 {[%clk 0:02:59.4]} 7... Qc7 {[%clk 0:03:07.6]} 8. Bc4 {[%clk 0:02:57.9]}
8... Nxe4 {[%clk 0:02:44.9]} 9. Nxe4 {[%clk 0:02:58.4]} 9... d5 {[%clk
0:02:46.2]} 10. Bd3 {[%clk 0:02:59.9]} 10... dxe4 {[%clk 0:02:47.3]} 11. Bxe4
{[%clk 0:03:01.5]} 11... Nd7 {[%clk 0:02:36.6]} 12. Qd2 {[%clk 0:02:51.8]} 12...
Rd8 {[%clk 0:02:36.8]} 13. O-O {[%clk 0:02:50.9]} 13... Nc5 {[%clk 0:02:36.1]}
14. Bd3 {[%clk 0:02:39.4]} 14... Nxd3 {[%clk 0:02:35.8]} 15. Qxd3 {[%clk
0:02:40.7]} 15... Bf5 {[%clk 0:02:31]} 16. Qc4 {[%clk 0:02:41]} 16... Be6 {[%clk
0:02:26.7]} 17. Qe2 {[%clk 0:02:39.2]} 17... Qa5 {[%clk 0:02:10.3]} 18. Rfe1
{[%clk 0:02:33.5]} 18... Qb4 {[%clk 0:01:52.8]} 19. c3 {[%clk 0:02:32.7]} 19...
Qc4 {[%clk 0:01:41.4]} 20. Qxc4 {[%clk 0:02:30.8]} 20... Bxc4 {[%clk 0:01:42.3]}
21. Ne5 {[%clk 0:02:31.6]} 21... Be6 {[%clk 0:01:24.8]} 22. f4 {[%clk
0:02:26.9]} 22... h5 {[%clk 0:01:23.5]} 23. Kf2 {[%clk 0:02:26.6]} 23... h4
{[%clk 0:01:21.3]} 24. Kg1 {[%clk 0:02:19.6]} 24... Rd5 {[%clk 0:01:13.7]} 25.
Bf2 {[%clk 0:02:18]} 25... Bxe5 {[%clk 0:00:56]} 26. dxe5 {[%clk 0:01:57.9]}
26... Rd2 {[%clk 0:00:53.7]} 27. Bxh4 {[%clk 0:01:54.1]} 27... Bd5 {[%clk
0:00:51.2]} 28. Bf2 {[%clk 0:01:53.8]} 28... Rxb2 {[%clk 0:00:51.2]} 29. Reb1
{[%clk 0:01:52.2]} 29... Rxb1+ {[%clk 0:00:49.2]} 30. Rxb1 {[%clk 0:01:52.6]}
30... b6 {[%clk 0:00:48.6]} 31. g3 {[%clk 0:01:47.7]} 31... Kf8 {[%clk
0:00:37.2]} 32. Be3 {[%clk 0:01:46.4]} 32... Ke8 {[%clk 0:00:38.2]} 33. Kf2
{[%clk 0:01:46.5]} 33... Kd7 {[%clk 0:00:39.2]} 34. h4 {[%clk 0:01:38.3]} 34...
Kc7 {[%clk 0:00:39.7]} 35. g4 {[%clk 0:01:36.1]} 35... Kb7 {[%clk 0:00:39.4]}
36. a5 {[%clk 0:01:13.1]} 36... b5 {[%clk 0:00:39.9]} 37. Bc5 {[%clk 0:01:13.7]}
37... Re8 {[%clk 0:00:35.5]} 38. f5 {[%clk 0:01:07.8]} 38... gxf5 {[%clk
0:00:34.8]} 39. gxf5 {[%clk 0:01:08.9]} 39... Be4 {[%clk 0:00:36.2]} 40. Rd1
{[%clk 0:01:08.3]} 40... Bxf5 {[%clk 0:00:37.3]} 41. Kg3 {[%clk 0:01:07.4]}
41... a6 {[%clk 0:00:28.1]} 42. Kf4 {[%clk 0:01:07.4]} 42... Be6 {[%clk
0:00:28.4]} 43. h5 {[%clk 0:00:54.9]} 43... Kc7 {[%clk 0:00:16.9]} 44. h6 {[%clk
0:00:55.7]} 44... Bd5 {[%clk 0:00:14.7]} 45. Rd2 {[%clk 0:00:50.1]} 45... e6
{[%clk 0:00:13.2]} 46. Rh2 {[%clk 0:00:44.4]} 46... Rh8 {[%clk 0:00:14.1]} 47.
Kg5 {[%clk 0:00:44.1]} 47... Rh7 {[%clk 0:00:14.5]} 48. Bf8 {[%clk 0:00:40.8]}
48... Be4 {[%clk 0:00:12.4]} 49. Kf6 {[%clk 0:00:39.5]} 49... Bg6 {[%clk
0:00:12.7]} 50. Ke7 {[%clk 0:00:40]} 50... f6+ {[%clk 0:00:05.9]} 51. Kxf6
{[%clk 0:00:39.7]} 51... Bf5 {[%clk 0:00:06.7]} 52. Bg7 {[%clk 0:00:39.8]} 52...
c5 {[%clk 0:00:07.9]} 53. Rd2 {[%clk 0:00:38.8]} 53... b4 {[%clk 0:00:03.4]} 54.
cxb4 {[%clk 0:00:39.2]} 54... cxb4 {[%clk 0:00:05.3]} 55. Rb2 {[%clk 0:00:40.3]}
55... Kc6 {[%clk 0:00:04.9]} 56. Rxb4 {[%clk 0:00:41.1]} 56... Kd5 {[%clk
0:00:03]} 57. Rb6 {[%clk 0:00:41.6]} 1-0

[Event "*** Titled Tuesday Blitz"]
[Site "Chess.com"]
[Date "2020.01.07"]
[Round "4"]
[White "ristingho"]
[Black "Moon_stone123"]
[Result "1-0"]
[WhiteElo "2520"]
[BlackElo "2101"]
[TimeControl "180+2"]
[EndTime "13:55:57 PST"]
[Termination "ristingho won by resignation"]

1. d4 {[%clk 0:03:00.2]} 1... Nf6 {[%clk 0:03:00]} 2. c4 {[%clk 0:03:00.8]} 2...
g6 {[%clk 0:03:00.1]} 3. Nc3 {[%clk 0:03:01.2]} 3... Bg7 {[%clk 0:03:00.3]} 4.
e4 {[%clk 0:02:58.1]} 4... d6 {[%clk 0:03:00.5]} 5. h3 {[%clk 0:02:58.1]} 5...
O-O {[%clk 0:03:00.9]} 6. Be3 {[%clk 0:02:59.5]} 6... e5 {[%clk 0:02:53.3]} 7.
d5 {[%clk 0:03:00.7]} 7... Na6 {[%clk 0:02:54.2]} 8. g4 {[%clk 0:03:00.6]} 8...
Nc5 {[%clk 0:02:54.7]} 9. f3 {[%clk 0:03:02.2]} 9... a5 {[%clk 0:02:48.2]} 10.
Qd2 {[%clk 0:03:03.1]} 10... Nfd7 {[%clk 0:02:33.5]} 11. Nge2 {[%clk 0:03:02]}
11... Kh8 {[%clk 0:02:14.5]} 12. Ng3 {[%clk 0:03:01.3]} 12... Qh4 {[%clk
0:01:45.5]} 13. Kf2 {[%clk 0:03:01]} 13... h6 {[%clk 0:01:32.4]} 14. Kg2 {[%clk
0:03:01.1]} 14... Nb6 {[%clk 0:01:22.4]} 15. Be2 {[%clk 0:02:58.8]} 15... f5
{[%clk 0:01:22]} 16. exf5 {[%clk 0:02:57.4]} 16... gxf5 {[%clk 0:01:23.9]} 17.
gxf5 {[%clk 0:02:56.6]} 17... Bxf5 {[%clk 0:01:23.2]} 18. b3 {[%clk 0:02:20.2]}
18... Rae8 {[%clk 0:00:40.1]} 19. Bf2 {[%clk 0:02:11.1]} 19... Qf4 {[%clk
0:00:32.2]} 20. Be3 {[%clk 0:02:05.2]} 20... Qh4 {[%clk 0:00:33.1]} 21. Raf1
{[%clk 0:01:58.7]} 21... Nbd7 {[%clk 0:00:31.3]} 22. Nb5 {[%clk 0:01:57.2]}
22... e4 {[%clk 0:00:20]} 23. f4 {[%clk 0:01:56.4]} 23... Qd8 {[%clk 0:00:17.1]}
24. Kh2 {[%clk 0:01:51.1]} 24... Bh7 {[%clk 0:00:14.7]} 25. Rhg1 {[%clk
0:01:51.2]} 25... Rg8 {[%clk 0:00:14.6]} 26. Nh5 {[%clk 0:01:43.7]} 26... Qe7
{[%clk 0:00:11]} 27. Nxc7 {[%clk 0:01:42.4]} 27... Ref8 {[%clk 0:00:10.3]} 28.
Nxg7 {[%clk 0:01:41.4]} 28... Rxg7 {[%clk 0:00:12.2]} 29. Rxg7 {[%clk
0:01:33.8]} 29... Qxg7 {[%clk 0:00:14.1]} 30. Rg1 {[%clk 0:01:32.1]} 30... Qe7
{[%clk 0:00:12.8]} 31. Bd4+ {[%clk 0:01:31.6]} 31... Nf6 {[%clk 0:00:13.5]} 32.
Nb5 {[%clk 0:01:28.6]} 32... e3 {[%clk 0:00:10.1]} 33. Qc3 {[%clk 0:01:29.6]}
33... Ne4 {[%clk 0:00:10]} 34. Qxe3 {[%clk 0:01:28.2]} 34... Rg8 {[%clk
0:00:09.8]} 35. Rxg8+ {[%clk 0:01:27.7]} 35... Kxg8 {[%clk 0:00:11.7]} 36. Bf3
{[%clk 0:01:25.7]} 36... Kf7 {[%clk 0:00:10.6]} 37. Nc3 {[%clk 0:01:21.1]} 37...
Nxc3 {[%clk 0:00:04.4]} 38. Qxe7+ {[%clk 0:01:21.5]} 38... Kxe7 {[%clk
0:00:05.6]} 39. Bxc3 {[%clk 0:01:23.2]} 39... Ne4 {[%clk 0:00:06.7]} 40. Bxa5
{[%clk 0:01:20.9]} 40... Nc5 {[%clk 0:00:05]} 41. Bd1 {[%clk 0:01:19.4]} 41...
Bb1 {[%clk 0:00:04.5]} 42. a3 {[%clk 0:01:18.9]} 42... Ba2 {[%clk 0:00:06]} 43.
Bb4 {[%clk 0:01:11.8]} 43... Nxb3 {[%clk 0:00:06.1]} 44. Bxb3 {[%clk 0:00:51]}
44... Bxb3 {[%clk 0:00:06.7]} 45. c5 {[%clk 0:00:52.9]} 45... dxc5 {[%clk
0:00:07.6]} 46. Bxc5+ {[%clk 0:00:54.8]} 46... Kd7 {[%clk 0:00:08.3]} 47. d6
{[%clk 0:00:56.5]} 47... Ke6 {[%clk 0:00:08.6]} 48. Kg3 {[%clk 0:00:57.6]} 48...
Ba4 {[%clk 0:00:03.3]} 49. Kg4 {[%clk 0:00:58.4]} 49... Kf6 {[%clk 0:00:04.6]}
50. Kh5 {[%clk 0:00:55.4]} 50... Kg7 {[%clk 0:00:05.7]} 51. Bd4+ {[%clk
0:00:55.9]} 51... Kh7 {[%clk 0:00:05.2]} 52. f5 {[%clk 0:00:56.1]} 52... Be8+
{[%clk 0:00:05.5]} 53. Kg4 {[%clk 0:00:56.4]} 53... Kg8 {[%clk 0:00:07]} 54. Kf4
{[%clk 0:00:57.7]} 54... Kf8 {[%clk 0:00:08.3]} 55. Ke5 {[%clk 0:00:59.6]} 55...
Kf7 {[%clk 0:00:09.5]} 56. Be3 {[%clk 0:00:57.9]} 56... Bd7 {[%clk 0:00:09.6]}
57. Bxh6 {[%clk 0:00:58.2]} 57... Bc6 {[%clk 0:00:07.8]} 58. h4 {[%clk
0:00:59.3]} 58... Ke8 {[%clk 0:00:08.2]} 59. Kf6 {[%clk 0:00:58.9]} 59... Kd7
{[%clk 0:00:08.2]} 60. Bf4 {[%clk 0:01:00.8]} 60... Bf3 {[%clk 0:00:07.2]} 61.
Kg6 {[%clk 0:01:01.7]} 61... Ke8 {[%clk 0:00:07.2]} 62. h5 {[%clk 0:01:03]}
62... Kf8 {[%clk 0:00:06.1]} 63. h6 {[%clk 0:01:04.4]} 63... Bc6 {[%clk
0:00:06.8]} 64. h7 {[%clk 0:01:05.5]} 1-0

[Event "*** Titled Tuesday Blitz"]
[Site "Chess.com"]
[Date "2020.01.07"]
[Round "4"]
[White "esteban062000"]
[Black "shanemelaughcm"]
[Result "0-1"]
[WhiteElo "2049"]
[BlackElo "2282"]
[TimeControl "180+2"]
[EndTime "13:56:13 PST"]
[Termination "shanemelaughcm won by resignation"]

1. Nf3 {[%clk 0:03:01.9]} 1... d6 {[%clk 0:02:55.5]} 2. c4 {[%clk 0:02:57.6]}
2... e5 {[%clk 0:02:56.7]} 3. d3 {[%clk 0:02:55.1]} 3... f5 {[%clk 0:02:57.3]}
4. g3 {[%clk 0:02:53.6]} 4... Nf6 {[%clk 0:02:58.4]} 5. Bg2 {[%clk 0:02:52.1]}
5... Nc6 {[%clk 0:02:59.5]} 6. a3 {[%clk 0:02:51.7]} 6... Be7 {[%clk 0:02:59.8]}
7. b4 {[%clk 0:02:49.9]} 7... O-O {[%clk 0:03:00.7]} 8. Qb3 {[%clk 0:02:48.1]}
8... Qe8 {[%clk 0:02:56.7]} 9. O-O {[%clk 0:02:41]} 9... Qh5 {[%clk 0:02:57.2]}
10. c5+ {[%clk 0:02:27.1]} 10... Kh8 {[%clk 0:02:57.6]} 11. cxd6 {[%clk
0:02:24]} 11... cxd6 {[%clk 0:02:59.5]} 12. Nbd2 {[%clk 0:02:20.8]} 12... Ng4
{[%clk 0:03:00.3]} 13. h3 {[%clk 0:02:08.9]} 13... Nf6 {[%clk 0:02:58.6]} 14.
Bb2 {[%clk 0:01:56.1]} 14... f4 {[%clk 0:02:48.9]} 15. h4 {[%clk 0:01:34.7]}
15... Qg4 {[%clk 0:02:40.7]} 16. Nh2 {[%clk 0:01:29.2]} 16... Qxe2 {[%clk
0:02:39.3]} 17. Ndf3 {[%clk 0:01:26]} 17... fxg3 {[%clk 0:02:16.9]} 18. Rae1
{[%clk 0:01:16.5]} 18... gxh2+ {[%clk 0:02:14.1]} 19. Kh1 {[%clk 0:01:11.6]}
19... Qxe1 {[%clk 0:01:37.6]} 20. Rxe1 {[%clk 0:00:52.8]} 20... Ng4 {[%clk
0:01:33.7]} 21. Ng5 {[%clk 0:00:46.9]} 21... Bxg5 {[%clk 0:01:32]} 22. hxg5
{[%clk 0:00:48.8]} 22... Rxf2 {[%clk 0:01:29.8]} 23. Rf1 {[%clk 0:00:41.8]}
23... Rxf1+ {[%clk 0:01:30.4]} 24. Bxf1 {[%clk 0:00:43.7]} 24... Bf5 {[%clk
0:01:31.1]} 25. Qf7 {[%clk 0:00:39.3]} 25... Bg6 {[%clk 0:01:19.3]} 26. Qxb7
{[%clk 0:00:35.4]} 26... Rf8 {[%clk 0:01:21]} 27. Bg2 {[%clk 0:00:34.2]} 27...
Nd8 {[%clk 0:01:21.6]} 28. Qe7 {[%clk 0:00:28]} 28... Re8 {[%clk 0:01:20.5]} 29.
Qxd6 {[%clk 0:00:27.1]} 29... Nf7 {[%clk 0:01:11.3]} 30. Qd7 {[%clk 0:00:24.8]}
30... Nf2+ {[%clk 0:01:05.7]} 31. Kxh2 {[%clk 0:00:25.9]} 31... Rd8 {[%clk
0:01:07.3]} 32. Qxa7 {[%clk 0:00:23.4]} 32... Nxd3 {[%clk 0:01:08.8]} 33. Ba1
{[%clk 0:00:19.9]} 33... Nf4 {[%clk 0:01:09.4]} 34. Qe7 {[%clk 0:00:19.1]} 34...
h6 {[%clk 0:01:06.5]} 35. Bxe5 {[%clk 0:00:20]} 35... Nd3 {[%clk 0:00:59]} 36.
Bc3 {[%clk 0:00:17.6]} 36... hxg5 {[%clk 0:01:00.1]} 37. Bf1 {[%clk 0:00:14.5]}
37... Nf4 {[%clk 0:01:00]} 38. Bc4 {[%clk 0:00:14.4]} 38... Nd5 {[%clk
0:00:55.1]} 39. Bxd5 {[%clk 0:00:15.4]} 39... Rxd5 {[%clk 0:00:57]} 40. Qe8+
{[%clk 0:00:16.4]} 40... Kh7 {[%clk 0:00:57.8]} 41. Qe6 {[%clk 0:00:17.5]} 41...
Rd3 {[%clk 0:00:57.3]} 42. Bb2 {[%clk 0:00:16.6]} 42... Rd2+ {[%clk 0:00:57.3]}
43. Kg3 {[%clk 0:00:18.1]} 43... Rxb2 {[%clk 0:00:58.6]} 44. Qh3+ {[%clk
0:00:19.3]} 44... Kg8 {[%clk 0:00:58.7]} 45. Qc8+ {[%clk 0:00:20.4]} 45... Kh7
{[%clk 0:01:00.3]} 46. Qh3+ {[%clk 0:00:21.5]} 46... Nh6 {[%clk 0:01:02]} 47.
Qe6 {[%clk 0:00:19.4]} 47... Bf7 {[%clk 0:00:54.3]} 48. Qe4+ {[%clk 0:00:19.4]}
48... Bg6 {[%clk 0:00:55.5]} 49. Qd4 {[%clk 0:00:20.6]} 49... Rb3+ {[%clk
0:00:56.3]} 50. Kf2 {[%clk 0:00:20.9]} 50... Rxa3 {[%clk 0:00:57.6]} 51. b5
{[%clk 0:00:20.9]} 51... Rb3 {[%clk 0:00:57.5]} 52. b6 {[%clk 0:00:21.9]} 52...
g4 {[%clk 0:00:58.7]} 53. Qc5 {[%clk 0:00:22.3]} 53... g3+ {[%clk 0:00:58.6]}
54. Kg1 {[%clk 0:00:22.9]} 54... Be4 {[%clk 0:00:36.9]} 55. Qc1 {[%clk
0:00:19.1]} 55... Rxb6 {[%clk 0:00:28.9]} 56. Kf1 {[%clk 0:00:19.1]} 56... Rb1
{[%clk 0:00:30]} 57. Kg1 {[%clk 0:00:21]} 0-1

[Event "*** Titled Tuesday Blitz"]
[Site "Chess.com"]
[Date "2020.01.07"]
[Round "4"]
[White "chessdjw"]
[Black "FedaMaster"]
[Result "0-1"]
[WhiteElo "2647"]
[BlackElo "2469"]
[TimeControl "180+2"]
[EndTime "13:56:19 PST"]
[Termination "FedaMaster won by checkmate"]

1. d4 {[%clk 0:03:01.9]} 1... Nf6 {[%clk 0:03:00.4]} 2. Nf3 {[%clk 0:03:03]}
2... g6 {[%clk 0:03:01.4]} 3. g3 {[%clk 0:03:04.3]} 3... Bg7 {[%clk 0:03:02.3]}
4. Bg2 {[%clk 0:03:05.9]} 4... O-O {[%clk 0:03:04]} 5. O-O {[%clk 0:03:07.5]}
5... d5 {[%clk 0:03:05.6]} 6. Nbd2 {[%clk 0:03:06.8]} 6... Bf5 {[%clk
0:02:49.2]} 7. b3 {[%clk 0:03:05.7]} 7... a5 {[%clk 0:02:47.5]} 8. Bb2 {[%clk
0:03:07.3]} 8... a4 {[%clk 0:02:46.2]} 9. c4 {[%clk 0:02:57.4]} 9... c6 {[%clk
0:02:46.9]} 10. e3 {[%clk 0:02:55.9]} 10... Qa5 {[%clk 0:02:37.8]} 11. Qc1
{[%clk 0:02:48.7]} 11... b5 {[%clk 0:02:32.6]} 12. b4 {[%clk 0:02:27.1]} 12...
Qa6 {[%clk 0:02:04.2]} 13. c5 {[%clk 0:02:23.5]} 13... Ne4 {[%clk 0:01:51.3]}
14. a3 {[%clk 0:02:22.7]} 14... Nxd2 {[%clk 0:01:47.6]} 15. Nxd2 {[%clk
0:02:14.7]} 15... Nd7 {[%clk 0:01:48]} 16. e4 {[%clk 0:02:13.4]} 16... dxe4
{[%clk 0:01:48.4]} 17. Nxe4 {[%clk 0:02:14.7]} 17... Bxe4 {[%clk 0:01:47.7]} 18.
Bxe4 {[%clk 0:02:15.4]} 18... Nf6 {[%clk 0:01:48.5]} 19. Bg2 {[%clk 0:02:16.1]}
19... Rad8 {[%clk 0:01:44.4]} 20. Re1 {[%clk 0:02:06.1]} 20... e6 {[%clk
0:01:41.6]} 21. Qc2 {[%clk 0:02:04.6]} 21... Rd7 {[%clk 0:01:34.5]} 22. h4
{[%clk 0:02:04.3]} 22... Rfd8 {[%clk 0:01:32.6]} 23. Rad1 {[%clk 0:01:55.7]}
23... Nd5 {[%clk 0:01:21.6]} 24. h5 {[%clk 0:01:53.1]} 24... Ne7 {[%clk
0:01:22.7]} 25. Qe4 {[%clk 0:01:42.8]} 25... Qc8 {[%clk 0:01:09.5]} 26. Qf4
{[%clk 0:01:27.6]} 26... e5 {[%clk 0:01:07]} 27. Rxe5 {[%clk 0:01:28.4]} 27...
Bxe5 {[%clk 0:01:07.5]} 28. Qxe5 {[%clk 0:01:30.3]} 28... Nd5 {[%clk 0:01:07.2]}
29. h6 {[%clk 0:01:13.2]} 29... f6 {[%clk 0:01:08.3]} 30. Bxd5+ {[%clk 0:00:38]}
30... Rxd5 {[%clk 0:01:08.9]} 31. Qxf6 {[%clk 0:00:39.6]} 31... Qd7 {[%clk
0:01:08.4]} 32. Re1 {[%clk 0:00:37.4]} 32... Rf8 {[%clk 0:01:05.8]} 33. Qe6+
{[%clk 0:00:35.9]} 33... Qf7 {[%clk 0:00:58.2]} 34. Kg2 {[%clk 0:00:22.2]} 34...
Rf5 {[%clk 0:00:54.2]} 35. f4 {[%clk 0:00:20.8]} 35... g5 {[%clk 0:00:55.5]} 36.
Bc1 {[%clk 0:00:12.7]} 36... gxf4 {[%clk 0:00:16.5]} 37. Bxf4 {[%clk 0:00:13]}
37... Qxe6 {[%clk 0:00:08.4]} 38. Rxe6 {[%clk 0:00:13.1]} 38... R8f6 {[%clk
0:00:10.3]} 39. Re7 {[%clk 0:00:13]} 39... Rd5 {[%clk 0:00:09.9]} 40. Re4 {[%clk
0:00:05.4]} 40... Kf7 {[%clk 0:00:09.6]} 41. g4 {[%clk 0:00:06.8]} 41... Re6
{[%clk 0:00:09.7]} 42. Rxe6 {[%clk 0:00:05.6]} 42... Kxe6 {[%clk 0:00:11.6]} 43.
Be5 {[%clk 0:00:07.2]} 43... Rd7 {[%clk 0:00:12.6]} 44. Kg3 {[%clk 0:00:08.4]}
44... Rf7 {[%clk 0:00:12.8]} 45. Kh4 {[%clk 0:00:09.9]} 45... Rf1 {[%clk
0:00:13.3]} 46. g5 {[%clk 0:00:11.1]} 46... Kf5 {[%clk 0:00:13.7]} 47. Bf6
{[%clk 0:00:12.3]} 47... Rf4+ {[%clk 0:00:12.9]} 48. Kg3 {[%clk 0:00:13.3]}
48... Rf1 {[%clk 0:00:14.2]} 49. Kg2 {[%clk 0:00:14.6]} 49... Ra1 {[%clk
0:00:13.3]} 50. d5 {[%clk 0:00:15.5]} 50... Ra2+ {[%clk 0:00:14.8]} 51. Kg3
{[%clk 0:00:16]} 51... cxd5 {[%clk 0:00:16.4]} 52. c6 {[%clk 0:00:15.2]} 52...
Rc2 {[%clk 0:00:17.4]} 53. Kf3 {[%clk 0:00:13.1]} 53... Rxc6 {[%clk 0:00:18.6]}
54. Ke3 {[%clk 0:00:15]} 54... Rc4 {[%clk 0:00:19.9]} 55. Kd3 {[%clk 0:00:16.3]}
55... Re4 {[%clk 0:00:20.8]} 56. Bd8 {[%clk 0:00:17.2]} 56... Rg4 {[%clk
0:00:21.3]} 57. Ke3 {[%clk 0:00:18.1]} 57... d4+ {[%clk 0:00:21.5]} 58. Kd3
{[%clk 0:00:19.3]} 58... Ke5 {[%clk 0:00:22.5]} 59. Bf6+ {[%clk 0:00:20.9]}
59... Kd5 {[%clk 0:00:23.8]} 60. Ke2 {[%clk 0:00:22.5]} 60... Ke4 {[%clk
0:00:24.5]} 61. Kf2 {[%clk 0:00:23.4]} 61... d3 {[%clk 0:00:26.1]} 62. Ke1
{[%clk 0:00:23.3]} 62... Ke3 {[%clk 0:00:27.6]} 63. Kd1 {[%clk 0:00:22.4]} 63...
Rg1# {[%clk 0:00:28.2]} 0-1